fUSD/lending_fUSD_20240528
["ID","MTS","AMOUNT","RATE_DAILY","PERIOD"]
[328129345,1716913833084,-2246.56936434,0.000129,2]
[328129346,1716913833107,-3385.25462402,0.000129,2]
[328129347,1716913833117,-200.19793252,0.000129,2]
[328129348,1716913833127,-150.58,0.0001299,2]
[328129349,1716913833137,-7519.71493115,0.00012998,2]
[328129350,1716913833147,-155.0,0.00012998,2]
[328129351,1716913833157,-3285.77643226,0.00012998,2]
[328129352,1716913833166,-271.53784341,0.00012998,2]
[328129353,1716913833176,-155.71773965,0.00012998,2]
[328129354,1716913833188,-306.83143117,0.00012998,2]
[328129355,1716913833198,-1811.26696563,0.00012998,2]
[328129356,1716913833209,-599.1104828,0.00012998,2]
[328129357,1716913833219,-237.41199557,0.00012998,2]
[328129358,1716913833228,-176.09380187,0.00012998,2]
[328129359,1716913833238,-155.0,0.00012998,2]
[328129360,1716913833247,-158.14534676,0.00012998,2]
[328129361,1716913833256,-155.50433289,0.00012998,2]
[328129362,1716913833266,-155.0,0.00012999,2]
[328129363,1716913833275,-3478.55025381,0.00012999,2]
[328129364,1716913833286,-1432.68764726,0.00012999,2]
[328129365,1716913833296,-5370.58140367,0.00012999,2]
[328129366,1716913833308,-3417.15,0.00012999,2]
[328129377,1716913838071,-155.0,0.00011009,2]
[328129379,1716913838083,-164.3682071,0.0001299,2]
[328129382,1716913838094,-164.3682071,0.0001299,2]
[328129384,1716913838109,-164.3682071,0.0001299,2]
[328129386,1716913838120,-16291.2874483,0.00012999,2]
[328129387,1716913838134,-354.84182742,0.00012999,2]
[328129388,1716913838147,-1514.60496027,0.00012999,2]
[328129389,1716913838159,-7992.0,0.00012999,2]
[328129390,1716913838171,-9523.4799505,0.00012999,2]
[328129391,1716913838187,-1810.10313082,0.00012999,2]
[328129392,1716913838198,-118.4559822,0.00012999,2]
[328129393,1716913838208,-1904.85202841,0.00013,2]
[328129394,1716913838219,-843.3111509,0.00013,2]
[328129400,1716913841044,-49926.79316388,0.00013,2]
[328129401,1716913841674,-500.0,0.00013,2]
[328129409,1716913843190,-827.96107645,0.00013,2]
[328129410,1716913843283,-1047.1115,0.00013,2]
[328129411,1716913843306,-647.5444773,0.00013,2]
[328129418,1716913843369,-24785.04879249,0.00013,2]
[328129419,1716913843459,-2140.48339792,0.00013,2]
[328129420,1716913843620,-854.2784418,0.00013,2]
[328129421,1716913843632,-4270.1638074,0.00013,2]
[328129422,1716913843644,-4445.23740939,0.00013,2]
[328129423,1716913843655,-566.08002,0.00013,2]
[328129424,1716913843667,-273.0945,0.00013,2]
[328129425,1716913843733,-1058.08583989,0.00013,2]
[328129426,1716913843745,-2279.31174855,0.00013,2]
[328129427,1716913843758,-2272807.48925984,0.00013,2]
[328129428,1716913843767,-434445.98878298,0.00013,2]
[328129429,1716913843777,-1075.4154,0.0001339,2]
[328129430,1716913843787,-156.84,0.00013474,2]
[328129431,1716913843796,-156.84,0.00013478,2]
[328129432,1716913843806,-156.84,0.00013481,2]
[328129433,1716913843815,-156.84,0.00013485,2]
[328129434,1716913843825,-1298.39020343,0.00013488,2]
[328129435,1716913843835,-156.84,0.00013488,2]
[328129436,1716913843845,-156.84,0.00013492,2]
[328129437,1716913843855,-156.84,0.00013495,2]
[328129438,1716913843864,-156.84,0.00013499,2]
[328129439,1716913843874,-156.84,0.00013502,2]
[328129440,1716913843883,-156.84,0.00013506,2]
[328129441,1716913843893,-156.84,0.00013509,2]
[328129442,1716913843903,-156.84,0.00013513,2]
[328129443,1716913843912,-156.84,0.00013516,2]
[328129444,1716913843922,-156.84,0.0001352,2]
[328129445,1716913843932,-156.84,0.00013523,2]
[328129446,1716913843942,-156.84,0.00013527,2]
[328129447,1716913843951,-156.84,0.00013531,2]
[328129448,1716913843961,-156.84,0.00013534,2]
[328129449,1716913843970,-156.84,0.00013538,2]
[328129450,1716913843979,-156.84,0.00013541,2]
[328129451,1716913843989,-347.6,0.00013699,2]
[328129452,1716913843999,-2751.0,0.00013699,2]
[328129453,1716913844008,-200.0,0.00013699,2]
[328129454,1716913844017,-228.68,0.00013699,2]
[328129456,1716913844027,-307.24,0.00013704,2]
[328129457,1716913844036,-1000.0,0.00013867,2]
[328129458,1716913844045,-1216.20074594,0.00013899,2]
[328129459,1716913844054,-575.91,0.0001392,2]
[328129460,1716913844064,-157.01,0.00013973,2]
[328129461,1716913844073,-172.08,0.00013973,2]
[328129462,1716913844082,-159.0,0.00013973,2]
[328129463,1716913844091,-157.25,0.00013973,2]
[328129464,1716913844101,-1040.4552301,0.00014,2]
[328129465,1716913844113,-1075.4154,0.0001402,2]
[328129466,1716913844123,-151.0,0.00014296,3]
[328129467,1716913844132,-151.0,0.00014296,2]
[328129468,1716913844142,-347.6,0.00014384,2]
[328129469,1716913844152,-1075.4154,0.0001465,2]
[328129470,1716913844162,-1270.58824831,0.00014775,2]
[328129471,1716913844171,-155.0,0.00015,2]
[328129472,1716913844181,-4217.45561659,0.00015,2]
[328129473,1716913844195,-155.000001,0.00015,2]
[328129474,1716913844204,-6665.13436769,0.00015013,2]
[328129475,1716913844214,-844.91733298,0.00015013,2]
[328129476,1716913844223,-347.6,0.00015068,2]
[328129477,1716913844232,-1000.0,0.00015254,2]
[328129478,1716913844241,-1075.41541,0.0001527,2]
[328129479,1716913844251,-347.6,0.00015753,2]
[328129480,1716913844260,-732.0,0.000158,2]
[328129481,1716913844269,-1075.4154,0.0001589,2]
[328129482,1716913844278,-2656.0,0.000159,2]
[328129483,1716913844287,-307.24,0.00015968,2]
[328129484,1716913844296,-1803.193,0.0001605,2]
[328129485,1716913844306,-1331.788,0.0001605,2]
[328129486,1716913844315,-1265.0,0.0001605,2]
[328129487,1716913844324,-440.0,0.0001605,2]
[328129488,1716913844333,-347.6,0.00016438,2]
[328129489,1716913844343,-1000.0,0.00016641,2]
[328129490,1716913844352,-1270.58824831,0.0001665,2]
[328129491,1716913844362,-575.91,0.0001666,2]
[328129492,1716913844371,-6665.13436769,0.00017327,2]
[328129493,1716913844381,-844.91733298,0.00017327,2]
[328129494,1716913844390,-804.69308319,0.00018,2]
[328129495,1716913844399,-307.24,0.00018232,2]
[328129496,1716913844409,-209.69400465,0.000185,2]
[328129497,1716913844419,-1270.58824831,0.00018524,2]
[328129498,1716913844432,-1265.0,0.0001905,2]
[328129499,1716913844443,-288.0,0.0001905,2]
[328129500,1716913844452,-343.91991892,0.00019178,2]
[328129501,1716913844462,-500.0,0.00019178,2]
[328129502,1716913844471,-444.16478681,0.00019178,2]
[328129503,1716913844480,-500.0,0.00019178,2]
[328129504,1716913844490,-500.0,0.00019178,2]
[328129505,1716913844499,-500.0,0.00019178,2]
[328129506,1716913844508,-500.0,0.00019178,2]
[328129507,1716913844518,-500.0,0.00019178,2]
[328129508,1716913844527,-328.41380762,0.00019178,2]
[328129509,1716913844537,-310.67813258,0.00019178,2]
[328129510,1716913844546,-312.05206874,0.00019178,2]
[328129511,1716913844556,-336.49211903,0.00019178,2]
[328129512,1716913844565,-464.24451865,0.00019178,2]
[328129513,1716913844575,-500.0,0.00019178,2]
[328129514,1716913844585,-500.0,0.00019178,2]
[328129515,1716913844595,-221.23509366,0.00019178,2]
[328129516,1716913844605,-228.68,0.00019178,2]
[328129517,1716913844615,-3885.07287193,0.000192,2]
[328129518,1716913844625,-396.63428496,0.000192,2]
[328129535,1716913846290,-321.85253325,0.00012999,2]
[328129536,1716913846300,-155.0,0.00012999,2]
[328129537,1716913846310,-122.42725883,0.00012999,2]
[328129538,1716913846322,-32.57274117,0.00012999,2]
[328129539,1716913846331,-750.62001013,0.00012999,2]
[328129540,1716913846341,-155.13,0.00013973,2]
[328129541,1716913846351,-10305.37,0.00017266,2]
[328129542,1716913846360,-515.11571504,0.000192,2]
[328129543,1716913846370,-1059.07,0.000192,2]
[328129544,1716913846379,-152.41,0.0001959,15]
[328129545,1716913846388,-6665.13436769,0.0001964,2]
[328129546,1716913846398,-844.91733298,0.0001964,2]
[328129547,1716913846407,-1266.34594844,0.000199,3]
[328129548,1716913846417,-1656.22627306,0.0002,2]
[328129549,1716913846426,-1779.69159916,0.0002,2]
[328129550,1716913846437,-6246.18937467,0.0002,2]
[328129551,1716913846446,-634.26621699,0.0002,2]
[328129552,1716913846455,-600.0,0.0002,2]
[328129553,1716913846465,-1270.58824831,0.00020399,2]
[328129554,1716913846475,-172.08,0.00020447,2]
[328129555,1716913846484,-307.24,0.00020496,2]
[328129556,1716913846493,-163.0,0.000208,5]
[328129557,1716913846503,-176.62,0.00021918,2]
[328129558,1716913846512,-250.0,0.00021918,2]
[328129559,1716913846521,-173.95,0.00021918,2]
[328129560,1716913846531,-947.27,0.00021918,2]
[328129561,1716913846540,-6665.13436769,0.00021954,2]
[328129562,1716913846550,-844.91733298,0.00021954,2]
[328129563,1716913846559,-6635.29803521,0.00022,2]
[328129564,1716913846568,-788.55765148,0.00022,2]
[328129565,1716913846577,-627.87,0.0002205,2]
[328129566,1716913846587,-1000.0,0.00022147,2]
[328129567,1716913846597,-1270.58824831,0.00022274,2]
[328129568,1716913846607,-307.24,0.0002276,2]
[328129569,1716913846616,-5517.23632911,0.00023,2]
[328129570,1716913846625,-200.24456635,0.00023,2]
[328129571,1716913846635,-150.55028266,0.00023113,2]
[328129572,1716913846644,-153.0648168,0.00023182,2]
[328129573,1716913846654,-6093.61096281,0.00023211,2]
[328129574,1716913846663,-911.75,0.000233,2]
[328129575,1716913846672,-1059.07,0.000233,2]
[328129576,1716913846682,-2007.00181739,0.000234,2]
[328129577,1716913846692,-155.60883531,0.00023506,2]
[328129578,1716913846701,-153.0648168,0.00023516,2]
[328129579,1716913846711,-158.99960963,0.00023568,2]
[328129580,1716913846720,-2051.35862913,0.000236,2]
[328129581,1716913846729,-150.55028266,0.00023716,2]
[328129582,1716913846739,-153.0648168,0.00023744,2]
[328129583,1716913846748,-153.0648168,0.00023751,2]
[328129584,1716913846757,-150.55028266,0.00023771,2]
[328129585,1716913846775,-150.55028266,0.00023788,2]
[328129586,1716913846784,-500.0,0.00023888,2]
[328129587,1716913846793,-500.0,0.00023888,2]
[328129588,1716913846803,-1300.0,0.00023888,2]
[328129589,1716913846812,-1600.0,0.00023888,2]
[328129590,1716913846821,-500.0,0.00023888,2]
[328129591,1716913846830,-151.40096086,0.00023962,2]
[328129592,1716913846839,-150.55028266,0.00023965,2]
[328129593,1716913846849,-472.59666178,0.00024,2]
[328129594,1716913846858,-158.99960963,0.00024016,2]
[328129595,1716913846868,-1270.58824831,0.00024149,2]
[328129596,1716913846879,-151.86608747,0.00024228,2]
[328129597,1716913846888,-6665.13436769,0.00024267,2]
[328129598,1716913846898,-844.91733298,0.00024267,2]
[328129599,1716913846907,-158.99960963,0.00024288,2]
[328129600,1716913846916,-156.56459879,0.00024412,2]
[328129601,1716913846926,-1300.0,0.00024436,2]
[328129602,1716913846935,-1600.0,0.00024436,2]
[328129603,1716913846944,-500.0,0.00024436,2]
[328129604,1716913846954,-534.32535897,0.000245,3]
[328129605,1716913846963,-150.55028266,0.00024535,2]
[328129606,1716913846972,-153.0648168,0.00024643,2]
[328129607,1716913846982,-153.0648168,0.00024721,2]
[328129608,1716913846991,-150.55028266,0.00024801,2]
[328129609,1716913847000,-170.4027608,0.00024868,2]
[328129610,1716913847010,-158.99960963,0.00024888,2]
[328129611,1716913847019,-6776.29426629,0.000249,2]
[328129612,1716913847028,-500.0,0.000249,2]
[328129613,1716913847037,-155.60883531,0.00024936,2]
[328129614,1716913847046,-1300.0,0.00024984,2]
[328129615,1716913847055,-1600.0,0.00024984,2]
[328129616,1716913847064,-500.0,0.00024984,2]
[328129617,1716913847073,-500.0,0.00024984,2]
[328129618,1716913847083,-500.0,0.00024984,2]
[328129619,1716913847092,-225.31395826,0.00025,2]
[328129620,1716913847101,-155.0,0.00025,2]
[328129621,1716913847115,-1200.76193844,0.00025,2]
[328129622,1716913847124,-500.0,0.00025,2]
[328129623,1716913847133,-500.0,0.00025,2]
[328129624,1716913847142,-155.0,0.00025,2]
[328129625,1716913847151,-1050.0,0.00025,2]
[328129626,1716913847161,-307.24,0.00025023,2]
[328129627,1716913847170,-153.0648168,0.00025034,2]
[328129628,1716913847194,-150.55028266,0.0002511,2]
[328129629,1716913847203,-153.0648168,0.0002513,2]
[328129630,1716913847212,-1000.0,0.00025205,2]
[328129631,1716913847221,-158.99960963,0.00025239,2]
[328129632,1716913847230,-150.0,0.00025261,2]
[328129633,1716913847240,-154.55028091,0.00025291,2]
[328129634,1716913847249,-1059.07,0.000253,2]
[328129635,1716913847259,-911.75,0.000255,2]
[328129636,1716913847268,-1600.0,0.00025532,2]
[328129637,1716913847278,-1300.0,0.00025532,2]
[328129638,1716913847287,-153.82568732,0.00025533,2]
[328129639,1716913847296,-155.60883531,0.0002567,2]
[328129640,1716913847306,-158.99960963,0.00025835,2]
[328129641,1716913847317,-153.82568732,0.00025935,2]
[328129642,1716913847326,-23544.27883139,0.00026,5]
[328129643,1716913847335,-1270.58824831,0.00026024,2]
[328129644,1716913847344,-1600.0,0.0002608,2]
[328129645,1716913847353,-1300.0,0.0002608,2]
[328129646,1716913847362,-500.0,0.0002608,2]
[328129647,1716913847372,-500.0,0.0002608,2]
[328129648,1716913847381,-500.0,0.0002608,2]
[328129649,1716913847390,-158.99960963,0.00026112,2]
[328129650,1716913847399,-151.40096086,0.00026167,2]
[328129651,1716913847410,-157.25,0.00026274,2]
[328129652,1716913847419,-153.0648168,0.00026332,2]
[328129653,1716913847428,-800.0,0.00026356,2]
[328129654,1716913847441,-800.0,0.00026356,2]
[328129655,1716913847450,-800.0,0.00026356,2]
[328129656,1716913847459,-800.0,0.00026356,2]
[328129657,1716913847468,-800.0,0.00026356,2]
[328129658,1716913847477,-168.09102681,0.00026554,2]
[328129659,1716913847486,-158.99960963,0.0002657,2]
[328129660,1716913847497,-6665.13436769,0.00026581,2]
[328129661,1716913847506,-844.91733298,0.00026581,2]
[328129662,1716913847515,-1300.0,0.00026628,2]
[328129663,1716913847525,-150.55028266,0.00026673,2]
[328129664,1716913847534,-150.55028266,0.00026676,2]
[328129665,1716913847543,-150.55028266,0.00026679,2]
[328129666,1716913847552,-150.55028266,0.00026776,2]
[328129667,1716913847561,-153.0648168,0.00026877,2]
[328129668,1716913847570,-172.08,0.00026921,2]
[328129669,1716913847579,-1100.0,0.00027,2]
[328129670,1716913847588,-153.0648168,0.00027039,2]
[328129671,1716913847597,-153.0648168,0.00027048,2]
[328129672,1716913847607,-1059.07,0.000271,2]
[328129673,1716913847617,-1600.0,0.00027176,2]
[328129674,1716913847627,-500.0,0.00027176,2]
[328129675,1716913847636,-500.0,0.00027176,2]
[328129676,1716913847646,-500.0,0.00027176,2]
[328129677,1716913847655,-150.55028266,0.00027208,2]
[328129678,1716913847665,-153.0648168,0.00027268,2]
[328129679,1716913847675,-153.0648168,0.00027285,2]
[328129680,1716913847686,-307.24,0.00027287,2]
[328129681,1716913847695,-158.99960963,0.00027313,2]
[328129682,1716913847704,-151.40096086,0.00027323,2]
[328129683,1716913847714,-805.42124353,0.0002739,2]
[328129684,1716913847723,-500.0,0.00027397,2]
[328129685,1716913847733,-500.0,0.00027397,2]
[328129686,1716913847741,-555.74,0.00027397,2]
[328129687,1716913847751,-509.06451775,0.00027397,2]
[328129688,1716913847760,-500.0,0.00027397,2]
[328129689,1716913847770,-500.0,0.00027397,2]
[328129690,1716913847779,-500.0,0.00027397,2]
[328129691,1716913847788,-424.73871268,0.00027397,2]
[328129692,1716913847797,-500.0,0.00027397,2]
[328129693,1716913847808,-508.68446954,0.00027397,2]
[328129694,1716913847817,-500.0,0.00027397,2]
[328129695,1716913847826,-500.0,0.00027397,2]
[328129696,1716913847835,-513.51136621,0.00027397,2]
[328129697,1716913847844,-513.23844435,0.00027397,2]
[328129698,1716913847853,-547.10741263,0.00027397,2]
[328129699,1716913847863,-500.0,0.00027397,2]
[328129700,1716913847871,-500.0,0.00027397,2]
[328129701,1716913847881,-500.0,0.00027397,2]
[328129702,1716913847890,-500.0,0.00027397,2]
[328129703,1716913847899,-500.0,0.00027397,2]
[328129704,1716913847909,-500.0,0.00027397,2]
[328129705,1716913847918,-515.42099331,0.00027397,2]
[328129706,1716913847927,-500.0,0.00027397,2]
[328129707,1716913847940,-512.03715541,0.00027397,2]
[328129708,1716913847950,-511.22733227,0.00027397,2]
[328129709,1716913847960,-500.0,0.00027397,2]
[328129710,1716913847969,-494.83359859,0.00027397,2]
[328129711,1716913847978,-511.27723239,0.00027397,2]
[328129712,1716913847987,-500.0,0.00027397,2]
[328129713,1716913847996,-500.0,0.00027397,2]
[328129714,1716913848006,-500.0,0.00027397,2]
[328129715,1716913848015,-500.0,0.00027397,2]
[328129716,1716913848025,-500.0,0.00027397,2]
[328129717,1716913848034,-563.18988103,0.00027397,2]
[328129718,1716913848043,-500.0,0.00027397,2]
[328129719,1716913848053,-516.55689973,0.00027397,2]
[328129720,1716913848062,-510.19160201,0.00027397,2]
[328129721,1716913848071,-515.16372206,0.00027397,2]
[328129722,1716913848081,-515.78732428,0.00027397,2]
[328129723,1716913848090,-549.37851636,0.00027397,2]
[328129724,1716913848100,-513.14058542,0.00027397,2]
[328129725,1716913848114,-513.77844055,0.00027397,2]
[328129726,1716913848123,-640.75404345,0.00027397,2]
[328129727,1716913848132,-627.32,0.00027397,2]
[328129728,1716913848142,-500.0,0.00027397,2]
[328129729,1716913848151,-500.0,0.00027397,2]
[328129730,1716913848161,-519.25838239,0.00027397,2]
[328129731,1716913848170,-617.64268083,0.00027397,2]
[328129732,1716913848179,-526.38676423,0.00027397,2]
[328129733,1716913848192,-515.08036712,0.00027397,2]
[328129734,1716913848202,-513.48542591,0.00027397,2]
[328129735,1716913848211,-515.02643783,0.00027397,2]
[328129736,1716913848220,-515.5704518,0.00027397,2]
[328129737,1716913848229,-511.57066577,0.00027397,2]
[328129738,1716913848237,-1409.12,0.00027397,2]
[328129739,1716913848246,-500.0,0.00027397,2]
[328129740,1716913848255,-577.62519606,0.00027397,2]
[328129741,1716913848266,-513.52402033,0.00027397,2]
[328129742,1716913848276,-500.0,0.00027397,2]
[328129743,1716913848285,-500.0,0.00027397,2]
[328129744,1716913848294,-525.73543922,0.00027397,2]
[328129745,1716913848304,-513.31018621,0.00027397,2]
[328129746,1716913848313,-510.63246283,0.00027397,2]
[328129747,1716913848322,-513.54200871,0.00027397,2]
[328129748,1716913848331,-500.0,0.00027397,2]
[328129749,1716913848341,-500.0,0.00027397,2]
[328129750,1716913848350,-511.5335733,0.00027397,2]
[328129751,1716913848360,-500.0,0.00027397,2]
[328129752,1716913848369,-514.24404646,0.00027397,2]
[328129753,1716913848379,-500.0,0.00027397,2]
[328129754,1716913848552,-511.64771395,0.00027397,2]
[328129755,1716913848565,-165.34446672,0.00027397,2]
[328129756,1716913848574,-619.96671782,0.00027397,2]
[328129757,1716913848583,-500.0,0.00027397,2]
[328129758,1716913848593,-516.67842675,0.00027397,2]
[328129759,1716913848602,-500.0,0.00027397,2]
[328129760,1716913848611,-613.41548388,0.00027397,2]
[328129761,1716913848621,-500.0,0.00027397,2]
[328129762,1716913848630,-515.05757596,0.00027397,2]
[328129763,1716913848640,-406.39264676,0.00027397,2]
[328129764,1716913848660,-500.0,0.00027397,2]
[328129765,1716913848670,-618.1,0.00027397,2]
[328129766,1716913848680,-511.42004816,0.00027397,2]
[328129767,1716913848693,-500.0,0.00027397,2]
[328129768,1716913848702,-500.0,0.00027397,2]
[328129769,1716913848712,-589.37,0.00027397,2]
[328129770,1716913848722,-510.10847419,0.00027397,2]
[328129771,1716913848732,-500.0,0.00027397,2]
[328129772,1716913848741,-330.19,0.00027397,2]
[328129773,1716913848751,-164.37,0.00027397,2]
[328129774,1716913848761,-500.0,0.00027397,2]
[328129775,1716913848771,-533.49,0.00027397,2]
[328129776,1716913848781,-577.37,0.00027397,2]
[328129777,1716913848791,-509.09,0.00027397,2]
[328129778,1716913848801,-500.0,0.00027397,2]
[328129779,1716913848810,-418.18,0.00027397,2]
[328129780,1716913848820,-500.0,0.00027397,2]
[328129781,1716913848830,-500.0,0.00027397,2]
[328129782,1716913848839,-335.5,0.00027397,2]
[328129783,1716913848849,-517.09265819,0.00027397,2]
[328129784,1716913848859,-500.0,0.00027397,2]
[328129785,1716913848869,-513.31,0.00027397,2]
[328129786,1716913848879,-467.81,0.00027397,2]
[328129787,1716913848889,-500.0,0.00027397,2]
[328129788,1716913848899,-202.28,0.00027397,2]
[328129789,1716913848910,-500.0,0.00027397,2]
[328129790,1716913848920,-500.0,0.00027397,2]
[328129791,1716913848930,-620.53,0.00027397,2]
[328129792,1716913848941,-316.66,0.00027397,2]
[328129793,1716913848951,-500.0,0.00027397,2]
[328129794,1716913848960,-500.0,0.00027397,2]
[328129795,1716913848970,-467.78,0.00027397,2]
[328129796,1716913848980,-538.24,0.00027397,2]
[328129797,1716913848990,-500.0,0.00027397,2]
[328129798,1716913849000,-150.0,0.00027397,2]
[328129799,1716913849010,-500.0,0.00027397,2]
[328129800,1716913849019,-359.21,0.00027397,2]
[328129801,1716913849029,-334.14,0.00027397,2]
[328129802,1716913849040,-341.91,0.00027397,2]
[328129803,1716913849050,-466.44,0.00027397,2]
[328129804,1716913849059,-500.0,0.00027397,2]
[328129805,1716913849069,-500.0,0.00027397,2]
[328129806,1716913849079,-447.83,0.00027397,2]
[328129807,1716913849088,-639.08,0.00027397,2]
[328129808,1716913849097,-2654.44,0.00027397,2]
[328129809,1716913849107,-500.0,0.00027397,2]
[328129810,1716913849121,-500.0,0.00027397,2]
[328129811,1716913849130,-500.0,0.00027397,2]
[328129812,1716913849140,-153.97,0.00027397,2]
[328129813,1716913849151,-400.20818224,0.00027397,2]
[328129814,1716913849160,-512.62407082,0.00027397,2]
[328129815,1716913849169,-446.01,0.00027397,2]
[328129816,1716913849179,-474.59775922,0.00027397,2]
[328129817,1716913849192,-526.25378519,0.00027397,2]
[328129818,1716913849201,-500.0,0.00027397,2]
[328129819,1716913849210,-500.0,0.00027397,2]
[328129820,1716913849220,-500.0,0.00027397,2]
[328129821,1716913849229,-500.0,0.00027397,2]
[328129822,1716913849239,-510.06915273,0.00027397,2]
[328129823,1716913849248,-516.80793903,0.00027397,2]
[328129824,1716913849257,-412.24,0.00027397,2]
[328129825,1716913849267,-500.0,0.00027397,2]
[328129826,1716913849277,-565.6,0.00027397,2]
[328129827,1716913849287,-346.23,0.00027397,2]
[328129828,1716913849296,-500.0,0.00027397,2]
[328129829,1716913849305,-500.0,0.00027397,2]
[328129830,1716913849315,-500.0,0.00027397,2]
[328129831,1716913849324,-270.29,0.00027397,2]
[328129832,1716913849333,-161.76,0.00027397,2]
[328129833,1716913849343,-500.0,0.00027397,2]
[328129834,1716913849353,-500.0,0.00027397,2]
[328129835,1716913849362,-500.0,0.00027397,2]
[328129836,1716913849372,-500.0,0.00027397,2]
[328129837,1716913849381,-500.0,0.00027397,2]
[328129838,1716913849391,-441.10416736,0.00027397,2]
[328129839,1716913849400,-500.0,0.00027397,2]
[328129840,1716913849410,-513.14428029,0.00027397,2]
[328129841,1716913849419,-601.27817518,0.00027397,2]
[328129842,1716913849429,-451.30248757,0.00027397,2]
[328129843,1716913849439,-500.0,0.00027397,2]
[328129844,1716913849448,-500.0,0.00027397,2]
[328129845,1716913849457,-513.48899229,0.00027397,2]
[328129846,1716913849466,-500.0,0.00027397,2]
[328129847,1716913849477,-542.26,0.00027397,2]
[328129848,1716913849487,-512.99953472,0.00027397,2]
[328129849,1716913849497,-563.28,0.00027397,2]
[328129850,1716913849506,-500.0,0.00027397,2]
[328129851,1716913849515,-500.0,0.00027397,2]
[328129852,1716913849527,-624.43781941,0.00027397,2]
[328129853,1716913849537,-500.0,0.00027397,2]
[328129854,1716913849547,-327.51,0.00027397,2]
[328129855,1716913849556,-500.0,0.00027397,2]
[328129856,1716913849566,-500.0,0.00027397,2]
[328129857,1716913849576,-517.34,0.00027397,2]
[328129858,1716913849585,-500.0,0.00027397,2]
[328129859,1716913849595,-500.0,0.00027397,2]
[328129860,1716913849604,-500.0,0.00027397,2]
[328129861,1716913849614,-500.0,0.00027397,2]
[328129862,1716913849624,-500.0,0.00027397,2]
[328129863,1716913849633,-417.42,0.00027397,2]
[328129864,1716913849643,-500.0,0.00027397,2]
[328129865,1716913849652,-500.0,0.00027397,2]
[328129866,1716913849661,-500.0,0.00027397,2]
[328129867,1716913849671,-500.0,0.00027397,2]
[328129868,1716913849681,-518.19,0.00027397,2]
[328129869,1716913849692,-513.78241099,0.00027397,2]
[328129870,1716913849702,-288.6,0.00027397,2]
[328129871,1716913849711,-275.64,0.00027397,2]
[328129872,1716913849721,-500.0,0.00027397,2]
[328129873,1716913849730,-566.21,0.00027397,2]
[328129874,1716913849740,-568.91457633,0.00027397,2]
[328129875,1716913849751,-500.0,0.00027397,2]
[328129876,1716913849760,-620.47,0.00027397,2]
[328129877,1716913849771,-500.0,0.00027397,2]
[328129878,1716913849781,-164.18,0.00027397,2]
[328129879,1716913849790,-500.0,0.00027397,2]
[328129880,1716913849799,-500.0,0.00027397,2]
[328129881,1716913849809,-500.0,0.00027397,2]
[328129882,1716913849818,-500.0,0.00027397,2]
[328129883,1716913849827,-682.59,0.00027397,2]
[328129884,1716913849837,-500.0,0.00027397,2]
[328129885,1716913849846,-500.0,0.00027397,2]
[328129886,1716913849856,-500.0,0.00027397,2]
[328129887,1716913849865,-889.03,0.00027397,2]
[328129888,1716913849875,-644.92273079,0.00027397,2]
[328129889,1716913849884,-500.0,0.00027397,2]
[328129890,1716913849894,-500.0,0.00027397,2]
[328129891,1716913849903,-500.0,0.00027397,2]
[328129892,1716913849913,-460.1271527,0.00027397,2]
[328129893,1716913849922,-500.0,0.00027397,2]
[328129894,1716913849933,-500.0,0.00027397,2]